[Event "Kragero Resort B 2020"]
[Site "Kragero"]
[Date "2020.02.19"]
[Round "1.1"]
[White "Sivertsen, Jarle"]
[Black "Omtvedt, Per"]
[Result "1-0"]
[ECO "D35"]
[WhiteElo "1606"]
[BlackElo "1894"]
[Annotator "NA"]
[PlyCount "103"]
[EventDate "2020.02.19"]
[EventType "swiss"]
[EventCountry "NOR"]
[SourceTitle "playchess.com"]
[Source "ChessBase"]
[SourceQuality "1"]
[TimeControl "5400+30"]

1. d4 {[%emt 0:00:00]} Nf6 {[%emt 0:00:00]} 2. c4 {[%emt 0:00:00]} e6 {[%emt 0:00:20]} 3. Nc3 {[%emt 0:00:12]} d5 {[%emt 0:00:08]} 4. cxd5 {[%emt 0:02:14]} exd5 {[%emt 0:01:05]} 5. Nf3 {[%emt 0:00:30]} c6 {[%emt 0:00:36]} 6. Bg5 {[%emt 0:03:52]} Be7 {[%emt 0:02:31]} 7. e3 {[%emt 0:00:24]} Bf5 {[%emt 0:05:17]} 8. a3 {[%emt 0:04:42]} a5 {[%emt 0:07:10]} 9. Qb3 {[%emt 0:04:16]} Ra7 {[%emt 0:01:25]} 10. Ne5 {[%emt 0:02:10]} O-O {[%emt 0:04:27]} 11. Be2 {[%emt 0:01:35]} Nfd7 {[%emt 0:05:26]} 12. Bxe7 {[%emt 0:01:52]} Qxe7 {[%emt 0:00:44]} 13. Nd3 {[%emt 0:01:42]} b5 {[%emt 0:06:59]} 14. O-O {[%emt 0:01:03]} Na6 {[%emt 0:04:12]} 15. Rfc1 {[%emt 0:03:02]} a4 {[%emt 0:01:48]} 16. Qd1 {[%emt 0:01:49]} Bxd3 {[%emt 0:02:03]} 17. Bxd3 {[%emt 0:00:28]} Nb6 {[%emt 0:00:44]} 18. b4 {[%emt 0:12:56]} axb3 {[%emt 0:03:31]} 19. Qxb3 {[%emt 0:00:12]} Nc7 {[%emt 0:03:40]} 20. e4 {[%emt 0:06:29]} Rfa8 {[%emt 0:14:06]} 21. exd5 {[%emt 0:02:49]} Rxa3 {[%emt 0:01:56]} 22. Rxa3 {[%emt 0:00:32]} Rxa3 {[%emt 0:00:42]} 23. Qb1 {[%emt 0:00:54]} b4 {[%emt 0:02:07]} 24. Re1 {[%emt 0:12:17]} Qd6 {[%emt 0:06:53]} 25. Bxh7+ {[%emt 0:04:34]} Kh8 {[%emt 0:00:53]} 26. Ne4 {[%emt 0:00:28]} Qxd5 {[%emt 0:01:33]} 27. h4 {[%emt 0:10:20]} Rb3 {[%emt 0:03:27]} 28. Qc2 {[%emt 0:00:24]} Qc4 {[%emt 0:02:43]} 29. Qd1 {[%emt 0:06:17]} g6 {[%emt 0:04:36]} 30. Ng5 {[%emt 0:03:07]} Kg7 {[%emt 0:07:00]} 31. Re7 {[%emt 0:01:12]} Rd3 {[%emt 0:03:54]} 32. Qe2 {[%emt 0:02:13]} Qxd4 {[%emt 0:00:30]} 33. Rxf7+ {[%emt 0:01:01]} Kh6 {[%emt 0:00:32]} 34. Bg8 {[%emt 0:01:43]} Rd1+ {[%emt 0:00:49]} 35. Kh2 {[%emt 0:00:44]} Qxh4+ {[%emt 0:00:38]} 36. Nh3 {[%emt 0:00:08]} Rd7 {[%emt 0:01:27]} 37. Qd2+ {[%emt 0:01:53]} g5 {[%emt 0:01:16]} 38. Rxd7 {[%emt 0:00:42]} Nxd7 {[%emt 0:00:29]} 39. Qxd7 {[%emt 0:00:16]} Qe4 {[%emt 0:00:45]} 40. Qxc7 {[%emt 0:00:25]} g4 {[%emt 0:00:58]} 41. Qd6+ {[%emt 0:02:01]} Kg7 {[%emt 0:00:20]} 42. Ng5 {[%emt 0:01:27]} Qf5 {[%emt 0:00:42]} 43. Be6 {[%emt 0:05:28]} Qxg5 {[%emt 0:00:20]} 44. Kg3 {[%emt 0:00:44]} Qf6 {[%emt 0:00:43]} 45. Qd7+ {[%emt 0:00:25]} Kh6 {[%emt 0:00:19]} 46. Bxg4 {[%emt 0:00:22]} b3 {[%emt 0:00:43]} 47. Qf5 {[%emt 0:00:53]} Qd6+ {[%emt 0:00:24]} 48. Qf4+ {[%emt 0:00:32]} Qxf4+ {[%emt 0:00:09]} 49. Kxf4 {[%emt 0:00:05]} Kg6 {[%emt 0:00:28]} 50. Bd1 {[%emt 0:00:50]} b2 {[%emt 0:00:09]} 51. Bc2+ {[%emt 0:00:04]} Kf6 {[%emt 0:00:07]} 52. Ke4 {[%emt 0:00:17]} 1-0

[Event "Kragero Resort B 2020"]
[Site "Kragero"]
[Date "2020.02.19"]
[Round "1.2"]
[White "Opseth, Oliver"]
[Black "Heitun, Odd Gunnar"]
[Result "1/2-1/2"]
[ECO "C52"]
[WhiteElo "1894"]
[BlackElo "1599"]
[Annotator "NA"]
[PlyCount "58"]
[EventDate "2020.02.19"]
[EventType "swiss"]
[EventCountry "NOR"]
[SourceTitle "playchess.com"]
[Source "ChessBase"]
[SourceQuality "1"]
[TimeControl "5400+30"]

1. e4 {[%emt 0:00:00]} e5 {[%emt 0:00:00]} 2. Nf3 {[%emt 0:00:00]} Nc6 {[%emt 0:00:00]} 3. Bc4 {[%emt 0:00:00]} Bc5 {[%emt 0:00:00]} 4. b4 {[%emt 0:00:00]} Bxb4 {[%emt 0:00:28]} 5. c3 {[%emt 0:00:10]} Ba5 {[%emt 0:02:13]} 6. d4 {[%emt 0:05:49]} exd4 {[%emt 0:01:26]} 7. O-O {[%emt 0:01:43]} d6 {[%emt 0:02:27]} 8. Qb3 {[%emt 0:08:43]} Be6 {[%emt 0:05:50]} 9. Bxe6 {[%emt 0:15:33]} fxe6 {[%emt 0:00:08]} 10. Bg5 {[%emt 0:03:58]} Qd7 {[%emt 0:05:24]} 11. cxd4 {[%emt 0:02:05]} Bb6 {[%emt 0:01:38]} 12. d5 {[%emt 0:04:43]} exd5 {[%emt 0:01:10]} 13. exd5 {[%emt 0:00:27]} Nce7 {[%emt 0:01:36]} 14. a4 {[%emt 0:01:31]} a5 {[%emt 0:02:43]} 15. Bxe7 {[%emt 0:05:44]} Nxe7 {[%emt 0:00:29]} 16. Ng5 {[%emt 0:00:41]} O-O {[%emt 0:01:34]} 17. Nc3 {[%emt 0:07:24]} Rf5 {[%emt 0:08:32]} 18. Ne6 {[%emt 0:02:45]} Ng6 {[%emt 0:03:07]} 19. Rac1 {[%emt 0:04:44]} Nf4 {[%emt 0:08:10]} 20. Nxf4 {[%emt 0:07:14]} Rxf4 {[%emt 0:00:10]} 21. Kh1 {[%emt 0:01:53]} Raf8 {[%emt 0:04:59]} 22. f3 {[%emt 0:04:28]} Be3 {[%emt 0:03:34]} 23. Rce1 {[%emt 0:02:30]} Bd2 {[%emt 0:01:38]} 24. Re6 {[%emt 0:01:21]} Bxc3 {[%emt 0:04:19]} 25. Qxc3 {[%emt 0:00:08]} b6 {[%emt 0:01:39]} 26. Rfe1 {[%emt 0:00:33]} R4f7 {[%emt 0:01:31]} 27. Qc4 {[%emt 0:01:52]} g6 {[%emt 0:03:30]} 28. h3 {[%emt 0:02:34]} Qd8 {[%emt 0:02:27]} 29. Qc6 {[%emt 0:01:41]} Qd7 {[%emt 0:01:40]} 1/2-1/2

[Event "Kragero Resort B 2020"]
[Site "Kragero"]
[Date "2020.02.19"]
[Round "1.3"]
[White "Haugen, Lars Tormod"]
[Black "Aasen, Kjetil Myrlid"]
[Result "1/2-1/2"]
[ECO "A16"]
[WhiteElo "1598"]
[BlackElo "1892"]
[Annotator "NA"]
[PlyCount "61"]
[EventDate "2020.02.19"]
[EventType "swiss"]
[EventCountry "NOR"]
[SourceTitle "playchess.com"]
[Source "ChessBase"]
[SourceQuality "1"]
[TimeControl "5400+30"]

1. c4 {[%emt 0:00:00]} Nf6 {[%emt 0:00:00]} 2. Nc3 {[%emt 0:00:19]} g6 {[%emt 0:00:00]} 3. Nf3 {[%emt 0:01:13]} Bg7 {[%emt 0:00:15]} 4. g3 {[%emt 0:02:19]} d5 {[%emt 0:03:34]} 5. cxd5 {[%emt 0:02:13]} Nxd5 {[%emt 0:00:08]} 6. Bg2 {[%emt 0:03:23]} O-O {[%emt 0:04:08]} 7. O-O {[%emt 0:00:19]} c6 {[%emt 0:02:16]} 8. e4 {[%emt 0:06:28]} Nxc3 {[%emt 0:00:45]} 9. bxc3 {[%emt 0:04:07]} Bg4 {[%emt 0:01:28]} 10. h3 {[%emt 0:04:30]} Bxf3 {[%emt 0:09:11]} 11. Qxf3 {[%emt 0:01:36]} Nd7 {[%emt 0:03:10]} 12. d4 {[%emt 0:01:36]} Nb6 {[%emt 0:02:42]} 13. Rb1 {[%emt 0:19:34]} Qc7 {[%emt 0:08:47]} 14. Qe2 {[%emt 0:05:12]} e5 {[%emt 0:08:56]} 15. Be3 {[%emt 0:04:13]} Rad8 {[%emt 0:05:55]} 16. Rfd1 {[%emt 0:00:36]} Rd7 {[%emt 0:07:30]} 17. d5 {[%emt 0:27:27]} cxd5 {[%emt 0:11:58]} 18. exd5 {[%emt 0:00:16]} Na4 {[%emt 0:07:32]} 19. d6 {[%emt 0:06:51]} Rxd6 {[%emt 0:05:24]} 20. Rxb7 {[%emt 0:07:01]} Nxc3 21. Qf1 {[%emt 0:00:09]} Rxd1 22. Rxc7 {[%emt 0:00:31]} Rxf1+ {[%emt 0:07:59]} 23. Kxf1 {[%emt 0:01:01]} Nxa2 {[%emt 0:02:56]} 24. Bd5 Nb4 {[%emt 0:00:37]} 25. Bb3 Nd3 {[%emt 0:02:49]} 26. Rxa7 {[%emt 0:01:14]} e4 {[%emt 0:01:35]} 27. Ke2 {[%emt 0:00:15]} Ne5 {[%emt 0:02:55]} 28. Bd5 {[%emt 0:00:16]} Re8 {[%emt 0:00:32]} 29. Bd4 {[%emt 0:01:14]} Rd8 {[%emt 0:00:42]} 30. Bxe5 {[%emt 0:00:10]} Bxe5 {[%emt 0:00:30]} 31. Bxf7+ {[%emt 0:00:30]} 1/2-1/2

[Event "Kragero Resort B 2020"]
[Site "Kragero"]
[Date "2020.02.19"]
[Round "1.4"]
[White "Olsen, William Alexander"]
[Black "Stromhaug, Kristoffer Wang"]
[Result "1-0"]
[ECO "B31"]
[WhiteElo "1862"]
[BlackElo "1597"]
[Annotator "NA"]
[PlyCount "73"]
[EventDate "2020.02.19"]
[EventType "swiss"]
[EventCountry "NOR"]
[SourceTitle "playchess.com"]
[Source "ChessBase"]
[SourceQuality "1"]
[TimeControl "5400+30"]

1. e4 {[%emt 0:00:00]} c5 {[%emt 0:00:00]} 2. Nf3 {[%emt 0:00:00]} Nc6 {[%emt 0:00:00]} 3. Bb5 {[%emt 0:00:21]} g6 {[%emt 0:01:50]} 4. Bxc6 {[%emt 0:00:36]} bxc6 {[%emt 0:00:41]} 5. d3 {[%emt 0:00:50]} Bg7 {[%emt 0:01:16]} 6. O-O {[%emt 0:00:47]} Qc7 {[%emt 0:03:00]} 7. Nc3 {[%emt 0:03:08]} Rb8 {[%emt 0:02:47]} 8. Qe1 {[%emt 0:09:11]} e5 {[%emt 0:07:09]} 9. Na4 {[%emt 0:13:15]} d6 {[%emt 0:02:24]} 10. Nh4 {[%emt 0:04:23]} Rb4 {[%emt 0:06:43]} 11. b3 {[%emt 0:05:28]} Ne7 {[%emt 0:04:05]} 12. Rb1 {[%emt 0:05:35]} Be6 {[%emt 0:06:51]} 13. f4 {[%emt 0:03:35]} f5 {[%emt 0:13:03]} 14. Bb2 {[%emt 0:07:40]} O-O {[%emt 0:19:15]} 15. fxe5 {[%emt 0:06:31]} dxe5 {[%emt 0:07:59]} 16. Nxc5 {[%emt 0:09:50]} Qb6 {[%emt 0:02:39]} 17. d4 {[%emt 0:01:00]} Bc8 {[%emt 0:02:19]} 18. c3 {[%emt 0:17:30]} Rb5 {[%emt 0:03:01]} 19. c4 {[%emt 0:03:45]} Ra5 {[%emt 0:07:08]} 20. Na4 {[%emt 0:02:40]} Rxa4 {[%emt 0:00:31]} 21. bxa4 {[%emt 0:00:18]} exd4 {[%emt 0:02:36]} 22. Ba3 {[%emt 0:00:49]} Qd8 {[%emt 0:00:47]} 23. exf5 {[%emt 0:00:27]} Re8 {[%emt 0:01:17]} 24. f6 {[%emt 0:03:07]} Nf5 {[%emt 0:02:33]} 25. Qf2 {[%emt 0:00:46]} Bxf6 {[%emt 0:00:31]} 26. Nxf5 {[%emt 0:00:11]} Bxf5 {[%emt 0:00:12]} 27. Rbe1 {[%emt 0:01:02]} Bg5 {[%emt 0:00:57]} 28. Rxe8+ {[%emt 0:00:38]} Qxe8 {[%emt 0:00:01]} 29. Bc1 {[%emt 0:00:21]} Bxc1 {[%emt 0:01:57]} 30. Rxc1 {[%emt 0:00:01]} Qe3 {[%emt 0:00:14]} 31. Qxe3 {[%emt 0:00:25]} dxe3 {[%emt 0:00:01]} 32. Re1 {[%emt 0:00:15]} Bd3 {[%emt 0:00:06]} 33. Rxe3 {[%emt 0:00:28]} Bxc4 {[%emt 0:00:05]} 34. Re7 {[%emt 0:00:40]} a6 {[%emt 0:00:11]} 35. Rc7 {[%emt 0:00:18]} Bd5 {[%emt 0:00:19]} 36. g4 {[%emt 0:00:19]} a5 {[%emt 0:00:19]} 37. a3 {[%emt 0:00:26]} 1-0

[Event "Kragero Resort B 2020"]
[Site "Kragero"]
[Date "2020.02.19"]
[Round "1.5"]
[White "Kveim, Ingvar Torjesen"]
[Black "Halvorsen, Benjamin"]
[Result "1-0"]
[ECO "B01"]
[WhiteElo "1584"]
[BlackElo "1861"]
[Annotator "NA"]
[PlyCount "111"]
[EventDate "2020.02.19"]
[EventType "swiss"]
[EventCountry "NOR"]
[SourceTitle "playchess.com"]
[Source "ChessBase"]
[SourceQuality "1"]
[TimeControl "5400+30"]

1. e4 {[%emt 0:00:00]} d5 {[%emt 0:00:00]} 2. exd5 {[%emt 0:00:00]} Qxd5 {[%emt 0:00:00]} 3. Nc3 {[%emt 0:00:00]} Qa5 {[%emt 0:00:00]} 4. Bc4 {[%emt 0:00:45]} Nf6 {[%emt 0:00:05]} 5. d3 {[%emt 0:00:29]} c6 {[%emt 0:00:43]} 6. Bd2 {[%emt 0:01:50]} Qc7 {[%emt 0:01:52]} 7. Nf3 {[%emt 0:03:38]} Bg4 {[%emt 0:02:58]} 8. h3 {[%emt 0:00:11]} Bh5 {[%emt 0:00:41]} 9. O-O {[%emt 0:01:10]} e6 {[%emt 0:01:42]} 10. Re1 {[%emt 0:07:27]} Bd6 {[%emt 0:03:56]} 11. a3 {[%emt 0:04:06]} O-O {[%emt 0:01:29]} 12. Ne4 {[%emt 0:14:18]} Nxe4 {[%emt 0:09:46]} 13. Rxe4 {[%emt 0:00:10]} Nd7 {[%emt 0:01:02]} 14. Bc3 {[%emt 0:06:24]} Ne5 {[%emt 0:03:37]} 15. Bxe5 {[%emt 0:05:16]} Bxe5 {[%emt 0:00:07]} 16. g4 {[%emt 0:01:26]} Bxb2 {[%emt 0:01:17]} 17. gxh5 {[%emt 0:00:54]} Bxa1 {[%emt 0:01:52]} 18. Qxa1 {[%emt 0:00:08]} Rae8 {[%emt 0:20:01]} 19. h6 {[%emt 0:18:41]} f5 {[%emt 0:02:41]} 20. Bxe6+ {[%emt 0:01:59]} Kh8 {[%emt 0:00:07]} 21. Bxf5 {[%emt 0:01:15]} Rxe4 {[%emt 0:01:06]} 22. hxg7+ {[%emt 0:02:09]} Qxg7+ {[%emt 0:00:09]} 23. Qxg7+ {[%emt 0:00:06]} Kxg7 {[%emt 0:00:02]} 24. Bxe4 {[%emt 0:03:07]} Kf6 {[%emt 0:04:11]} 25. Kf1 {[%emt 0:02:31]} h6 {[%emt 0:05:18]} 26. Ke2 {[%emt 0:00:24]} Ke6 {[%emt 0:01:07]} 27. Ke3 {[%emt 0:00:39]} Kd6 {[%emt 0:00:38]} 28. Nd4 {[%emt 0:01:57]} Rg8 {[%emt 0:01:37]} 29. Nf5+ {[%emt 0:10:33]} Kc5 {[%emt 0:00:17]} 30. Kd2 {[%emt 0:00:36]} Kb5 {[%emt 0:04:37]} 31. Kc3 {[%emt 0:00:15]} h5 {[%emt 0:03:24]} 32. Nd6+ {[%emt 0:02:03]} Kb6 {[%emt 0:00:27]} 33. Nf5 {[%emt 0:02:01]} a5 {[%emt 0:02:37]} 34. Ng3 {[%emt 0:00:09]} Rg5 {[%emt 0:00:47]} 35. Bf3 {[%emt 0:00:45]} h4 {[%emt 0:00:12]} 36. Ne4 {[%emt 0:00:24]} Rb5 {[%emt 0:03:20]} 37. Bg4 {[%emt 0:00:42]} Rb1 {[%emt 0:00:58]} 38. f4 {[%emt 0:00:59]} Kc7 {[%emt 0:00:20]} 39. f5 {[%emt 0:00:27]} Kd7 {[%emt 0:02:12]} 40. f6+ {[%emt 0:00:06]} Ke8 {[%emt 0:00:03]} 41. Bh5+ {[%emt 0:00:24]} Kf8 {[%emt 0:00:01]} 42. f7 {[%emt 0:00:21]} Rf1 {[%emt 0:00:28]} 43. Nc5 {[%emt 0:00:58]} Ke7 {[%emt 0:00:12]} 44. Nxb7 {[%emt 0:01:28]} Rf5 {[%emt 0:00:14]} 45. Bg4 {[%emt 0:00:52]} Rxf7 {[%emt 0:01:10]} 46. Nxa5 {[%emt 0:00:12]} Kd6 {[%emt 0:00:00]} 47. Nc4+ {[%emt 0:00:19]} Kd5 {[%emt 0:01:18]} 48. a4 {[%emt 0:00:41]} Kc5 {[%emt 0:00:28]} 49. a5 {[%emt 0:00:28]} Ra7 {[%emt 0:00:45]} 50. d4+ {[%emt 0:00:42]} Kb5 {[%emt 0:00:02]} 51. Be2 {[%emt 0:01:28]} Rg7 {[%emt 0:00:46]} 52. Bg4 {[%emt 0:00:49]} Ra7 {[%emt 0:00:38]} 53. Kd3 {[%emt 0:00:34]} Re7 {[%emt 0:00:26]} 54. Ne5 {[%emt 0:01:03]} Ra7 {[%emt 0:00:01]} 55. c4+ {[%emt 0:00:39]} Ka6 {[%emt 0:01:41]} 56. Bc8+ {[%emt 0:00:18]} 1-0

[Event "Kragero Resort B 2020"]
[Site "Kragero"]
[Date "2020.02.19"]
[Round "1.6"]
[White "Hausken, Andreas Skrede"]
[Black "Frovik, Einar Clausen"]
[Result "0-1"]
[ECO "B51"]
[WhiteElo "1856"]
[BlackElo "1563"]
[Annotator "NA"]
[PlyCount "54"]
[EventDate "2020.02.19"]
[EventType "swiss"]
[EventCountry "NOR"]
[SourceTitle "playchess.com"]
[Source "ChessBase"]
[SourceQuality "1"]
[TimeControl "5400+30"]

1. e4 {[%emt 0:00:00]} c5 {[%emt 0:01:11]} 2. Nf3 {[%emt 0:00:00]} d6 {[%emt 0:00:03]} 3. Bb5+ {[%emt 0:00:00]} Nc6 {[%emt 0:00:17]} 4. O-O {[%emt 0:00:00]} Nf6 {[%emt 0:00:12]} 5. Qe2 {[%emt 0:00:09]} Bd7 {[%emt 0:00:43]} 6. c3 {[%emt 0:00:09]} g6 {[%emt 0:00:50]} 7. Rd1 {[%emt 0:00:10]} Bg7 {[%emt 0:00:20]} 8. d4 {[%emt 0:00:15]} cxd4 {[%emt 0:01:17]} 9. cxd4 {[%emt 0:00:05]} O-O {[%emt 0:05:03]} 10. Nc3 {[%emt 0:01:24]} a6 {[%emt 0:02:54]} 11. Bd3 {[%emt 0:08:42]} Bg4 {[%emt 0:06:10]} 12. Be3 {[%emt 0:01:43]} Qa5 {[%emt 0:01:51]} 13. h3 {[%emt 0:06:23]} Bxf3 {[%emt 0:20:03]} 14. Qxf3 {[%emt 0:00:43]} Qb4 {[%emt 0:01:25]} 15. Ne2 {[%emt 0:01:58]} Ne8 {[%emt 0:03:28]} 16. a3 {[%emt 0:01:53]} Qb3 {[%emt 0:03:41]} 17. h4 {[%emt 0:01:14]} Nc7 {[%emt 0:01:10]} 18. Rac1 {[%emt 0:13:22]} Ne6 {[%emt 0:08:48]} 19. Rc3 {[%emt 0:05:51]} Qxd1+ {[%emt 0:07:30]} 20. Kh2 {[%emt 0:00:05]} Ncxd4 {[%emt 0:01:19]} 21. Nxd4 {[%emt 0:00:58]} Qxf3 {[%emt 0:00:12]} 22. Nxf3 {[%emt 0:00:01]} Bxc3 {[%emt 0:00:23]} 23. bxc3 {[%emt 0:00:11]} Rfc8 {[%emt 0:00:47]} 24. c4 {[%emt 0:00:17]} Nc5 {[%emt 0:01:49]} 25. Bc2 {[%emt 0:00:03]} b5 {[%emt 0:00:39]} 26. cxb5 {[%emt 0:00:13]} axb5 {[%emt 0:00:06]} 27. h5 {[%emt 0:00:02]} Rxa3 {[%emt 0:01:51]} 0-1

[Event "Kragero Resort B 2020"]
[Site "Kragero"]
[Date "2020.02.19"]
[Round "1.7"]
[White "Gudmundsson, Thordur"]
[Black "Skaslien, Ingrid"]
[Result "0-1"]
[ECO "C03"]
[WhiteElo "1553"]
[BlackElo "1847"]
[Annotator "NA"]
[PlyCount "120"]
[EventDate "2020.02.19"]
[EventType "swiss"]
[EventCountry "NOR"]
[SourceTitle "playchess.com"]
[Source "ChessBase"]
[SourceQuality "1"]
[TimeControl "5400+30"]

1. e4 {[%emt 0:00:00]} e6 {[%emt 0:00:04]} 2. d4 {[%emt 0:00:00]} d5 {[%emt 0:00:09]} 3. Nd2 {[%emt 0:00:00]} a6 {[%emt 0:00:15]} 4. e5 {[%emt 0:03:07]} c5 {[%emt 0:00:35]} 5. c3 {[%emt 0:00:11]} Nc6 {[%emt 0:04:36]} 6. Ndf3 {[%emt 0:03:18]} cxd4 {[%emt 0:04:06]} 7. cxd4 {[%emt 0:00:14]} Bd7 {[%emt 0:05:42]} 8. Bd3 {[%emt 0:01:52]} Rc8 {[%emt 0:05:33]} 9. Ne2 {[%emt 0:01:04]} Bb4+ {[%emt 0:05:55]} 10. Bd2 {[%emt 0:00:39]} Qb6 {[%emt 0:05:16]} 11. O-O {[%emt 0:01:33]} Nge7 {[%emt 0:03:11]} 12. a3 {[%emt 0:05:06]} Bxd2 {[%emt 0:00:24]} 13. Qxd2 {[%emt 0:00:08]} Na5 {[%emt 0:01:20]} 14. Qg5 {[%emt 0:07:34]} Ng6 {[%emt 0:08:36]} 15. b4 {[%emt 0:02:00]} Nc4 {[%emt 0:03:03]} 16. Rfc1 {[%emt 0:13:40]} O-O {[%emt 0:03:55]} 17. Ng3 {[%emt 0:17:09]} Ba4 {[%emt 0:10:39]} 18. h4 {[%emt 0:03:34]} Nb2 {[%emt 0:07:33]} 19. Bf1 {[%emt 0:03:48]} h6 {[%emt 0:03:40]} 20. Qg4 {[%emt 0:00:47]} Rxc1 {[%emt 0:04:50]} 21. Rxc1 {[%emt 0:00:10]} Bd1 {[%emt 0:00:38]} 22. Rb1 {[%emt 0:14:42]} Bxf3 {[%emt 0:00:52]} 23. gxf3 {[%emt 0:00:06]} Nc4 {[%emt 0:02:07]} 24. Bd3 {[%emt 0:01:02]} Ncxe5 {[%emt 0:01:55]} 25. dxe5 {[%emt 0:05:50]} Nxe5 {[%emt 0:00:12]} 26. Qf4 {[%emt 0:04:13]} Nxd3 {[%emt 0:00:14]} 27. Qd2 {[%emt 0:00:03]} Ne5 {[%emt 0:01:09]} 28. Kg2 {[%emt 0:02:36]} Rc8 {[%emt 0:01:39]} 29. f4 {[%emt 0:00:38]} Ng4 {[%emt 0:02:04]} 30. Qe2 {[%emt 0:01:51]} Nf6 {[%emt 0:00:22]} 31. f5 {[%emt 0:01:41]} Rc4 {[%emt 0:04:43]} 32. Kh3 {[%emt 0:03:17]} Ne4 {[%emt 0:00:45]} 33. fxe6 {[%emt 0:02:36]} Qxe6+ {[%emt 0:00:23]} 34. Kg2 {[%emt 0:01:05]} Qg6 {[%emt 0:01:06]} 35. Rb3 {[%emt 0:00:29]} Nxg3 {[%emt 0:01:42]} 36. Rxg3 {[%emt 0:01:02]} Qe4+ {[%emt 0:00:07]} 37. Qxe4 {[%emt 0:00:42]} Rxe4 {[%emt 0:00:38]} 38. Rd3 {[%emt 0:00:12]} d4 {[%emt 0:01:40]} 39. Kg3 {[%emt 0:00:16]} Kf8 {[%emt 0:00:29]} 40. f3 {[%emt 0:00:09]} Re3 {[%emt 0:00:06]} 41. Rxd4 {[%emt 0:00:28]} Rxa3 {[%emt 0:00:08]} 42. Kf4 {[%emt 0:00:12]} Ke7 {[%emt 0:00:44]} 43. Ke4 {[%emt 0:01:01]} Ke6 {[%emt 0:00:38]} 44. Kf4 {[%emt 0:00:19]} Rc3 {[%emt 0:01:51]} 45. Re4+ {[%emt 0:01:04]} Kd6 {[%emt 0:01:10]} 46. Rd4+ {[%emt 0:00:16]} Kc6 {[%emt 0:00:09]} 47. Re4 {[%emt 0:00:39]} Kb6 {[%emt 0:01:15]} 48. Re7 {[%emt 0:00:27]} Rc7 {[%emt 0:00:05]} 49. Re4 {[%emt 0:00:21]} Rc6 {[%emt 0:01:26]} 50. Re7 {[%emt 0:00:32]} Rf6+ {[%emt 0:00:12]} 51. Kg4 {[%emt 0:00:11]} Kc6 {[%emt 0:00:21]} 52. Re5 {[%emt 0:00:45]} b5 {[%emt 0:01:00]} 53. f4 {[%emt 0:01:04]} Kd6 {[%emt 0:02:22]} 54. Rc5 {[%emt 0:00:32]} Re6 {[%emt 0:00:36]} 55. Rf5 {[%emt 0:00:29]} Ke7 {[%emt 0:00:29]} 56. Rc5 {[%emt 0:00:14]} g6 {[%emt 0:01:00]} 57. h5 {[%emt 0:00:32]} Kf6 {[%emt 0:01:24]} 58. hxg6 {[%emt 0:00:36]} fxg6 {[%emt 0:00:09]} 59. f5 {[%emt 0:00:51]} Re4+ {[%emt 0:00:20]} 60. Kf3 {[%emt 0:00:18]} gxf5 {[%emt 0:00:13]} 0-1

[Event "Kragero Resort B 2020"]
[Site "Kragero"]
[Date "2020.02.19"]
[Round "1.8"]
[White "Leonhardsen, Vebjorn Maanum"]
[Black "Hammari, Vinjar"]
[Result "1-0"]
[ECO "D36"]
[WhiteElo "1845"]
[BlackElo "1547"]
[Annotator "NA"]
[PlyCount "73"]
[EventDate "2020.02.19"]
[EventType "swiss"]
[EventCountry "NOR"]
[SourceTitle "playchess.com"]
[Source "ChessBase"]
[SourceQuality "1"]
[TimeControl "5400+30"]

1. d4 {[%emt 0:00:00]} Nf6 {[%emt 0:00:09]} 2. c4 {[%emt 0:00:00]} d5 {[%emt 0:00:07]} 3. Nc3 {[%emt 0:01:42]} e6 {[%emt 0:01:13]} 4. Bg5 {[%emt 0:03:53]} Be7 {[%emt 0:00:53]} 5. e3 {[%emt 0:00:05]} O-O {[%emt 0:00:56]} 6. Nf3 {[%emt 0:00:04]} c6 {[%emt 0:00:56]} 7. Qc2 {[%emt 0:00:31]} Nbd7 {[%emt 0:00:36]} 8. cxd5 {[%emt 0:02:18]} exd5 {[%emt 0:00:24]} 9. Bd3 {[%emt 0:00:16]} h6 {[%emt 0:00:24]} 10. Bh4 {[%emt 0:00:14]} Re8 {[%emt 0:00:28]} 11. O-O {[%emt 0:00:30]} Ne4 {[%emt 0:08:39]} 12. Bxe7 {[%emt 0:00:49]} Qxe7 {[%emt 0:03:04]} 13. Rab1 {[%emt 0:04:12]} Ndf6 {[%emt 0:02:34]} 14. Ne5 {[%emt 0:05:15]} Bf5 {[%emt 0:01:51]} 15. b4 {[%emt 0:11:51]} Rac8 {[%emt 0:01:53]} 16. Na4 {[%emt 0:07:23]} b5 {[%emt 0:06:34]} 17. Nc5 {[%emt 0:10:59]} a5 {[%emt 0:01:19]} 18. bxa5 {[%emt 0:13:33]} Nd7 {[%emt 0:03:56]} 19. Nexd7 {[%emt 0:08:53]} Bxd7 {[%emt 0:00:23]} 20. Bxe4 {[%emt 0:03:46]} dxe4 {[%emt 0:00:29]} 21. Nxd7 {[%emt 0:02:27]} Qxd7 {[%emt 0:00:36]} 22. a4 {[%emt 0:01:02]} Qa7 {[%emt 0:03:30]} 23. axb5 {[%emt 0:00:55]} cxb5 {[%emt 0:00:21]} 24. Qa2 {[%emt 0:00:15]} Qa6 {[%emt 0:00:34]} 25. Rfc1 {[%emt 0:02:09]} Ra8 {[%emt 0:02:18]} 26. Ra1 {[%emt 0:02:20]} Re7 {[%emt 0:03:56]} 27. h3 {[%emt 0:03:21]} Rea7 {[%emt 0:00:49]} 28. Qd5 {[%emt 0:00:37]} Qb7 {[%emt 0:00:27]} 29. Qxb7 {[%emt 0:01:47]} Rxb7 {[%emt 0:00:09]} 30. a6 {[%emt 0:01:09]} Rbb8 {[%emt 0:01:15]} 31. Rc7 {[%emt 0:01:56]} f5 {[%emt 0:04:31]} 32. Rb7 {[%emt 0:05:01]} Kh7 {[%emt 0:00:35]} 33. Rb1 {[%emt 0:00:26]} Rf8 {[%emt 0:00:59]} 34. a7 {[%emt 0:00:25]} Kg6 {[%emt 0:03:20]} 35. R1xb5 {[%emt 0:00:26]} Rf6 {[%emt 0:00:53]} 36. R5b6 {[%emt 0:00:16]} Kg5 {[%emt 0:00:34]} 37. Rxg7+ {[%emt 0:00:26]} 1-0